fUSD/lending_fUSD_20250622
["ID","MTS","AMOUNT","RATE_DAILY","PERIOD"]
[367003122,1750611057674,-16731.45,0.00038356,120]
[367003124,1750611057684,-573.69,0.00038356,120]
[367003126,1750611057693,-490.0,0.00038356,120]
[367003128,1750611057703,-2315.1,0.00038356,120]
[367003130,1750611057712,-490.0,0.00038356,120]
[367003132,1750611057721,-835.648758,0.00038356,7]
[367003134,1750611057733,-2308.23,0.00038356,120]
[367003136,1750611057747,-976.2,0.00038356,120]
[367003138,1750611057758,-973.15,0.00038356,120]
[367003140,1750611057773,-835.648758,0.00038356,7]
[367003142,1750611057791,-3115.86,0.00038356,120]
[367003144,1750611057804,-490.0,0.00038356,120]
[367003146,1750611057814,-5504.11,0.00038356,120]
[367003148,1750611057824,-490.0,0.00038356,120]
[367003150,1750611057833,-1444.99,0.00038356,120]
[367003152,1750611057843,-490.0,0.00038356,120]
[367003153,1750611057851,-490.0,0.00038356,120]
[367003155,1750611057860,-2541.26,0.00038356,120]
[367003157,1750611057870,-835.648758,0.00038356,7]
[367003159,1750611057879,-835.648758,0.00038356,7]
[367003161,1750611057888,-490.0,0.00038356,120]
[367003163,1750611057898,-1537.74,0.00038356,120]
[367003165,1750611057909,-490.0,0.00038356,120]
[367003167,1750611057918,-1012.67,0.00038356,120]
[367003169,1750611057928,-490.0,0.00038356,120]
[367003171,1750611057937,-342.09144923,0.00038356,120]
[367003173,1750611057946,-490.0,0.00038356,120]
[367003175,1750611057956,-490.0,0.00038356,120]
[367003177,1750611057965,-490.0,0.00038356,120]
[367003179,1750611057974,-2088.76,0.00038356,120]
[367003181,1750611057984,-490.0,0.00038356,120]
[367003183,1750611057994,-3696.04,0.00038356,120]
[367003185,1750611058005,-490.0,0.00038356,120]
[367003186,1750611058015,-656.93,0.00038356,120]
[367003188,1750611058026,-1510.68,0.00038356,120]
[367003190,1750611058036,-490.0,0.00038356,120]
[367003192,1750611058045,-330.16559265,0.00038356,120]
[367003273,1750611058833,-174.91247071,0.00038356,120]
[367003275,1750611058842,-541.88,0.00038356,120]
[367003276,1750611058852,-1271.02488553,0.00038356,120]
[367003307,1750611059328,-272.46495944,0.00031,2]
[367003318,1750611059425,-357.87234682,0.00031,2]
[367003320,1750611059437,-569.66269374,0.00031,2]
[367003323,1750611059449,-151.0,0.0003699,7]
[367003324,1750611059459,-4385.90511447,0.00038356,120]
[367003327,1750611059468,-490.0,0.00038356,120]
[367003329,1750611059479,-490.0,0.00038356,120]
[367003331,1750611059488,-8968.02,0.00038356,120]
[367003333,1750611059501,-490.0,0.00038356,120]
[367003334,1750611059512,-490.0,0.00038356,120]
[367003337,1750611059522,-490.0,0.00038356,120]
[367003339,1750611059531,-490.0,0.00038356,120]
[367003341,1750611059540,-490.0,0.00038356,120]
[367003343,1750611059549,-460.200579,0.00038356,120]
[367003345,1750611059559,-490.0,0.00038356,120]
[367003347,1750611059569,-1578.73,0.00038356,120]
[367003349,1750611059579,-1288.47,0.00038356,120]
[367003351,1750611059588,-1288.47,0.00038356,120]
[367003353,1750611059598,-1288.47,0.00038356,120]
[367003355,1750611059608,-1288.47,0.00038356,120]
[367003357,1750611059617,-490.0,0.00038356,120]
[367003359,1750611059627,-1288.47,0.00038356,120]
[367003361,1750611059636,-1288.47,0.00038356,120]
[367003363,1750611059647,-1180.35,0.00038356,120]
[367003365,1750611059656,-1288.47,0.00038356,120]
[367003367,1750611059666,-2048.15,0.00038356,120]
[367003369,1750611059675,-1808.31,0.00038356,120]
[367003371,1750611059685,-1288.47,0.00038356,120]
[367003373,1750611059694,-1288.47,0.00038356,120]
[367003375,1750611059705,-1288.47,0.00038356,120]
[367003377,1750611059714,-1288.47,0.00038356,120]
[367003379,1750611059724,-1288.47,0.00038356,120]
[367003381,1750611059734,-1288.47,0.00038356,120]
[367003383,1750611059744,-490.0,0.00038356,120]
[367003385,1750611059756,-1288.47,0.00038356,120]
[367003387,1750611059766,-490.0,0.00038356,120]
[367003389,1750611059775,-490.0,0.00038356,120]
[367003391,1750611059785,-1288.47,0.00038356,120]
[367003393,1750611059795,-706.45,0.00038356,120]
[367003395,1750611059805,-490.0,0.00038356,120]
[367003397,1750611059815,-1185.95204175,0.00038356,120]
[367003400,1750611059829,-954.84795825,0.00038356,120]
[367003402,1750611059839,-490.0,0.00038356,120]
[367003404,1750611059849,-490.0,0.00038356,120]
[367003406,1750611059859,-490.0,0.00038356,120]
[367003408,1750611059868,-2197.56,0.00038356,120]
[367003410,1750611059878,-585.7,0.00038356,120]
[367003412,1750611059888,-490.0,0.00038356,120]
[367003414,1750611059898,-490.0,0.00038356,120]
[367003416,1750611059907,-490.0,0.00038356,120]
[367003418,1750611059917,-490.0,0.00038356,120]
[367003420,1750611059926,-151.0,0.00038356,7]
[367003422,1750611059936,-490.0,0.00038356,90]
[367003424,1750611059946,-5358.3,0.00038356,120]
[367003426,1750611059956,-490.0,0.00038356,120]
[367003428,1750611059965,-151.0,0.00038356,7]
[367003430,1750611059975,-2222.19,0.00038356,120]
[367003432,1750611059984,-3448.56,0.00038356,120]
[367003434,1750611059994,-4144.03,0.00038356,120]
[367003436,1750611060006,-1240.2,0.00038356,120]
[367003438,1750611060017,-922.91,0.00038356,120]
[367003440,1750611060026,-490.0,0.00038356,120]
[367003442,1750611060036,-490.0,0.00038356,120]
[367003444,1750611060048,-529.24138181,0.00038356,120]
[367003446,1750611060058,-1204.25,0.00038356,120]
[367003448,1750611060068,-734.3,0.00038356,120]
[367003450,1750611060078,-490.0,0.00038356,120]
[367003452,1750611060089,-490.0,0.00038356,120]
[367003455,1750611060099,-490.0,0.00038356,120]
[367003456,1750611060109,-1116.5,0.00038356,120]
[367003459,1750611060119,-490.0,0.00038356,120]
[367003461,1750611060129,-490.0,0.00038356,120]
[367003462,1750611060138,-490.0,0.00038356,120]
[367003465,1750611060149,-1889.36,0.00038356,120]
[367003467,1750611060159,-490.0,0.00038356,120]
[367003469,1750611060168,-847.67,0.00038356,120]
[367003470,1750611060178,-591.76,0.00038356,120]
[367003472,1750611060188,-490.0,0.00038356,120]
[367003474,1750611060199,-840.87,0.00038356,120]
[367003476,1750611060209,-2602.9,0.00038356,120]
[367003478,1750611060220,-543.50961929,0.00038356,120]
[367003480,1750611060231,-490.0,0.00038356,120]
[367003483,1750611060242,-490.0,0.00038356,2]
[367003484,1750611060253,-2345.39,0.00038356,120]
[367003486,1750611060263,-490.0,0.00038356,120]
[367003489,1750611060274,-2895.8,0.00038356,120]
[367003490,1750611060283,-3023.21,0.00038356,120]
[367003492,1750611060293,-490.0,0.00038356,120]
[367003495,1750611060303,-490.0,0.00038356,120]
[367003497,1750611060313,-490.0,0.00038356,120]
[367003498,1750611060323,-490.0,0.00038356,120]
[367003500,1750611060333,-19785.65,0.00038356,120]
[367003503,1750611060344,-490.0,0.00038356,120]
[367003505,1750611060355,-920.40341987,0.00038356,120]
[367003614,1750611061588,-202.0,0.0002727,2]
[367003615,1750611061599,-855.0,0.00027538,2]
[367003616,1750611061610,-202.0,0.00028261,3]
[367003617,1750611061620,-202.0,0.00029253,5]
[367003618,1750611061630,-202.0,0.00030245,7]
[367003619,1750611061640,-202.0,0.00031237,9]
[367003620,1750611061650,-676.26188252,0.00034822,2]
[367003621,1750611061660,-443.19811748,0.000364,2]
[367003622,1750611063037,-202.0,0.00032229,10]
[367003623,1750611063047,-202.0,0.00033221,12]
[367003624,1750611063057,-202.0,0.00034212,14]
[367003625,1750611063068,-202.0,0.00035204,16]
[367003626,1750611063078,-676.26188252,0.00035256,2]
[367003627,1750611063087,-202.0,0.00036196,17]
[367003628,1750611063097,-518.80188252,0.000364,2]
[367003629,1750611063107,-202.0,0.00037188,19]
[367003630,1750611063117,-151.0,0.00037522,7]
[367003631,1750611063126,-202.0,0.0003818,21]
[367003632,1750611063136,-223.79689536,0.00038256,2]
[367003633,1750611063146,-223.17658013,0.00038356,120]
[367003634,1750611063156,-217.66275947,0.00038356,120]
[367003636,1750611079111,7482.80104166,0.000251,2]
[367003637,1750611079136,2517.19895834,0.000251,2]
[367003648,1750611224985,248.18,0.00021,2]
[367003658,1750611413911,223.36,0.00021,2]
[367003660,1750611603030,201.03,0.00021,2]
[367003663,1750611670724,151.05,0.00013699,2]
[367003664,1750611670929,151.05,0.00020548,2]
[367003665,1750611673685,3734.311559,0.00021999,2]
[367003666,1750611792538,180.92,0.00021,2]
[367003668,1750611804872,5092.89948266,0.0002,2]
[367003669,1750611804896,12500.0,0.0002,2]
[367003670,1750611804919,12500.0,0.0002,2]
[367003671,1750611804942,12500.0,0.0002,2]
[367003672,1750611804966,3927.02084078,0.0002,2]
[367003685,1750611983462,162.83,0.00021,2]
[367003699,1750612172801,150.0,0.00021,2]
[367003701,1750612232230,-509.0,0.00025205,4]
[367003702,1750612232243,-447.91278012,0.00026449,2]
[367003703,1750612232285,-3286.39877888,0.00026449,2]
[367003704,1750612232295,-300.0,0.00026997,2]
[367003705,1750612232305,-300.0,0.00026999,2]
[367003706,1750612232314,-300.0,0.00026999,2]
[367003707,1750612232324,-1200.0,0.00026999,2]
[367003708,1750612232334,-3724.847977,0.00027,2]
[367003710,1750612232344,-478.86,0.00027,2]
[367003711,1750612232353,-322.5,0.00027191,15]
[367003713,1750612232363,-163.91567344,0.00027397,2]
[367003715,1750612232373,-151.05,0.00027397,2]
[367003717,1750612232383,-171.29,0.00027578,2]
[367003719,1750612232394,-150.124,0.00027578,2]
[367003720,1750612232403,-150.393,0.00027578,2]
[367003721,1750612232413,-150.0,0.00027578,2]
[367003722,1750612232423,-150.289,0.00027578,2]
[367003723,1750612232433,-150.33,0.00027578,2]
[367003724,1750612232443,-8871.52730548,0.00027738,3]
[367003732,1750612237905,-1038.9,0.00027738,3]
[367003734,1750612237917,-2589.57269452,0.00027738,3]
[367003736,1750612237928,-999.99,0.000279,2]
[367003737,1750612237937,-1935.45554103,0.000279,10]
[367003739,1750612238063,-410.17357847,0.000279,10]
[367003740,1750612238074,-982.311365,0.000279,10]
[367003885,1750612240070,-571.67040251,0.000279,10]
[367003902,1750612240227,-15103.21911299,0.000279,10]
[367003904,1750612240237,-6212.37,0.000279,2]
[367003906,1750612240253,-150.99,0.000279,2]
[367003908,1750612240265,-198.16,0.000279,12]
[367003910,1750612240275,-539.08733351,0.000279,18]
[367003912,1750612240285,-539.0873333,0.00028348,18]
[367003914,1750612240295,-539.0873333,0.00028797,19]
[367003916,1750612240304,-294.71174688,0.00028901,2]
[367003918,1750612240314,-151.0,0.00029,120]
[367003920,1750612240324,-263.03713171,0.00029041,120]
[367003922,1750612240334,-592.3707,0.00029224,2]
[367003924,1750612240344,-539.0873333,0.00029245,20]
[367003926,1750612240354,-1680.0,0.00029318,2]
[367003928,1750612240364,-539.0873333,0.00029693,21]
[367003930,1750612240374,-539.0873333,0.00030141,22]
[367003932,1750612240384,-478.86,0.000304,2]
[367003934,1750612240394,-539.0873333,0.0003059,23]
[367003936,1750612240404,-615.463,0.00030765,27]
[367003938,1750612240414,-151.6859,0.000309,2]
[367003940,1750612240426,-3734.311559,0.000309,2]
[367003942,1750612240436,-539.0873333,0.00031038,24]
[367003944,1750612240445,-439.66,0.000313,7]
[367003946,1750612240455,-539.0873333,0.00031486,25]
[367003948,1750612240464,-1075.0,0.00031836,3]
[367003950,1750612240474,-539.0873333,0.00031934,25]
[367003952,1750612240485,-1569.62426672,0.00032367,2]
[367003954,1750612240495,-539.0873333,0.00032383,26]
[367003956,1750612240508,-539.0873333,0.00032831,27]
[367003958,1750612240518,-208.41,0.00032848,2]
[367003960,1750612240528,-250.0,0.00032898,2]
[367003962,1750612240538,-530.690111,0.00033,14]
[367003964,1750612240549,-1000.0,0.00033002,2]
[367003966,1750612240559,-197.8,0.00033051,2]
[367003968,1750612240568,-1852.42,0.00033088,2]
[367003970,1750612240578,-666.0,0.00033168,2]
[367003972,1750612240588,-539.0873333,0.00033279,28]
[367003974,1750612240598,-731.7,0.00033287,120]
[367003976,1750612240608,-6411.68,0.00033288,2]
[367003978,1750612240618,-250.0,0.00033305,2]
[367003980,1750612240628,-1000.0,0.00033326,2]
[367003982,1750612240637,-1490.17,0.00033426,2]
[367003984,1750612240647,-300.0,0.00033439,2]
[367003986,1750612240657,-478.86,0.000336,2]
[367003988,1750612240667,-539.0873333,0.00033728,29]
[367003990,1750612240676,-539.0873333,0.00034176,30]
[367003992,1750612240685,-150.0,0.00034182,2]
[367003993,1750612240695,-527.0,0.000342,2]
[367003996,1750612240706,-166.49,0.00034227,2]
[367003997,1750612240715,-151.05,0.00034247,2]
[367003999,1750612240726,-3734.311559,0.00034318,3]
[367004001,1750612240740,-539.0873333,0.00034624,31]
[367004003,1750612240756,-151.0,0.00035,120]
[367004005,1750612240765,-539.0873333,0.00035072,32]
[367004007,1750612240775,-150.0,0.00035095,2]
[367004009,1750612240785,-184.10025501,0.00035151,30]
[367004011,1750612240802,-151.6859,0.00035338,3]
[367004013,1750612240821,-3734.311559,0.00035338,3]
[367004015,1750612240837,-500.0,0.00035341,60]
[367004017,1750612240847,-151.6859,0.0003535,2]
[367004020,1750612240858,-3734.311559,0.0003535,2]
[367004022,1750612240868,-539.0873333,0.00035521,33]
[367004023,1750612240878,-184.10025501,0.00035534,30]
[367004025,1750612240888,-184.10025501,0.00035918,30]
[367004027,1750612240897,-539.0873333,0.00035969,33]
[367004029,1750612240907,-150.0,0.00036008,2]
[367004031,1750612240917,-478.86,0.000361,2]
[367004033,1750612240926,-203.0,0.00036172,2]
[367004035,1750612240937,-158.62,0.00036339,120]
[367004037,1750612240948,-151.6859,0.00036359,3]
[367004039,1750612240957,-3734.311559,0.00036359,3]
[367004041,1750612240967,-527.44004875,0.000364,2]
[367004043,1750612240977,-539.0873333,0.00036417,34]
[367004045,1750612240989,-500.0,0.00036437,60]
[367004047,1750612241002,-500.0,0.00036437,60]
[367004049,1750612241013,-900.0,0.00036437,60]
[367004052,1750612241023,-1711.97,0.00036522,30]
[367004054,1750612241034,-478.86,0.000367,2]
[367004056,1750612241043,-539.0873333,0.00036866,35]
[367004058,1750612241053,-150.0,0.00036921,2]
[367004060,1750612241062,-4290.2422,0.00036928,2]
[367004062,1750612241073,-153.0,0.0003695,60]
[367004063,1750612241082,-153.0,0.0003695,60]
[367004065,1750612241093,-153.0,0.0003695,60]
[367004067,1750612241103,-420.0,0.00036952,60]
[367004069,1750612241113,-420.0,0.00036952,60]
[367004071,1750612241122,-420.0,0.00036952,60]
[367004073,1750612241132,-420.0,0.00036952,60]
[367004075,1750612241141,-420.0,0.00036952,60]
[367004077,1750612241151,-420.0,0.00036952,60]
[367004079,1750612241161,-420.0,0.00036952,60]
[367004081,1750612241170,-420.0,0.00036952,60]
[367004083,1750612241180,-420.0,0.00036952,60]
[367004085,1750612241190,-420.0,0.00036952,60]
[367004087,1750612241201,-420.0,0.00036952,60]
[367004089,1750612241212,-420.0,0.00036952,60]
[367004091,1750612241229,-420.0,0.00036952,60]
[367004093,1750612241247,-420.0,0.00036952,60]
[367004095,1750612241270,-153.0,0.00036957,60]
[367004097,1750612241291,-153.0,0.00036957,60]
[367004099,1750612241312,-153.0,0.00036957,60]
[367004101,1750612241323,-420.0,0.00036959,60]
[367004103,1750612241333,-420.0,0.00036959,60]
[367004105,1750612241343,-420.0,0.00036959,60]
[367004107,1750612241353,-420.0,0.00036959,60]
[367004109,1750612241364,-420.0,0.00036959,60]
[367004111,1750612241374,-420.0,0.00036959,60]
[367004113,1750612241384,-420.0,0.00036959,60]
[367004115,1750612241393,-420.0,0.00036959,60]
[367004117,1750612241403,-420.0,0.00036959,60]
[367004119,1750612241413,-420.0,0.00036959,60]
[367004121,1750612241423,-420.0,0.00036959,60]
[367004123,1750612241433,-420.0,0.00036959,60]
[367004125,1750612241443,-420.0,0.00036959,60]
[367004127,1750612241452,-420.0,0.00036959,60]
[367004129,1750612241462,-153.0,0.00036964,60]
[367004131,1750612241472,-153.0,0.00036964,60]
[367004133,1750612241482,-153.0,0.00036964,60]
[367004135,1750612241491,-420.0,0.00036966,60]
[367004137,1750612241504,-420.0,0.00036966,60]
[367004139,1750612241514,-420.0,0.00036966,60]
[367004140,1750612241524,-420.0,0.00036966,60]
[367004142,1750612241533,-420.0,0.00036966,60]
[367004144,1750612241543,-420.0,0.00036966,60]
[367004146,1750612241553,-420.0,0.00036966,60]
[367004148,1750612241562,-420.0,0.00036966,60]
[367004150,1750612241572,-420.0,0.00036966,60]
[367004152,1750612241583,-420.0,0.00036966,60]
[367004154,1750612241592,-420.0,0.00036966,60]
[367004156,1750612241602,-420.0,0.00036966,60]
[367004158,1750612241611,-420.0,0.00036966,60]
[367004160,1750612241620,-420.0,0.00036966,60]
[367004162,1750612241630,-153.0,0.0003697,60]
[367004164,1750612241640,-153.0,0.0003697,60]
[367004166,1750612241650,-153.0,0.0003697,60]
[367004168,1750612241660,-420.0,0.00036972,60]
[367004170,1750612241669,-420.0,0.00036972,60]
[367004172,1750612241679,-420.0,0.00036972,60]
[367004174,1750612241688,-420.0,0.00036972,60]
[367004176,1750612241698,-420.0,0.00036972,60]
[367004178,1750612241707,-420.0,0.00036972,60]
[367004180,1750612241716,-420.0,0.00036972,60]
[367004183,1750612241727,-420.0,0.00036972,60]
[367004185,1750612241736,-420.0,0.00036972,60]
[367004187,1750612241746,-420.0,0.00036972,60]
[367004188,1750612241759,-420.0,0.00036972,60]
[367004190,1750612241768,-420.0,0.00036972,60]
[367004192,1750612241778,-420.0,0.00036972,60]
[367004194,1750612241787,-420.0,0.00036972,60]
[367004196,1750612241798,-900.0,0.00036985,60]
[367004198,1750612241807,-151.0,0.0003699,7]
[367004200,1750612241818,-500.0,0.00037041,30]
[367004202,1750612241827,-2165.0,0.00037133,20]
[367004204,1750612241836,-151.48833978,0.000372,120]
[367004206,1750612241846,-1006.250861,0.00037205,16]
[367004208,1750612241855,-203.0,0.00037208,4]
[367004210,1750612241866,-300.0,0.000373,13]
[367004212,1750612241875,-539.0873333,0.00037314,36]
[367004214,1750612241885,-500.0,0.00037315,30]
[367004216,1750612241895,-151.6859,0.0003738,3]
[367004218,1750612241905,-3734.311559,0.0003738,3]
[367004220,1750612241914,-700.0,0.000374,13]
[367004222,1750612241923,-1966.97580725,0.00037418,2]
[367004224,1750612241933,-169.06547063,0.00037421,2]
[367004226,1750612241942,-169.06547063,0.00037465,2]
[367004228,1750612241951,-1000.0,0.00037492,2]
[367004230,1750612241962,-1100.0,0.000375,13]
[367004232,1750612241971,-169.06547063,0.00037509,2]
[367004234,1750612241980,-2165.0,0.00037516,20]
[367004236,1750612241989,-2126.0,0.00037518,120]
[367004238,1750612241998,-150.0,0.00037518,30]
[367004240,1750612242011,-154.0,0.00037518,60]
[367004242,1750612242020,-317.0,0.00037518,60]
[367004244,1750612242030,-323.0,0.00037518,60]
[367004246,1750612242039,-317.0,0.00037518,60]
[367004248,1750612242048,-317.0,0.00037518,60]
[367004249,1750612242058,-317.0,0.00037518,60]
[367004251,1750612242067,-317.0,0.00037518,60]
[367004253,1750612242076,-317.0,0.00037518,60]
[367004255,1750612242085,-317.0,0.00037518,60]
[367004257,1750612242095,-375.4907999,0.00037518,2]
[367004259,1750612242104,-150.0,0.00037518,2]
[367004261,1750612242113,-317.0,0.00037518,60]
[367004263,1750612242122,-2211.0,0.00037518,90]
[367004265,1750612242131,-150.0,0.00037521,2]
[367004267,1750612242141,-151.0,0.00037522,7]
[367004269,1750612242151,-1966.97580723,0.00037527,2]
[367004271,1750612242160,-900.0,0.00037533,60]
[367004273,1750612242169,-500.0,0.00037533,60]
[367004275,1750612242179,-500.0,0.00037533,60]
[367004277,1750612242188,-169.06547063,0.00037553,2]
[367004279,1750612242199,-500.0,0.00037589,30]
[367004281,1750612242208,-169.06547063,0.00037597,2]
[367004283,1750612242218,-1500.0,0.000376,13]
[367004285,1750612242227,-1966.97580723,0.00037636,2]
[367004288,1750612242237,-169.06547063,0.00037641,2]
[367004290,1750612242247,-3734.311559,0.00037653,60]
[367004292,1750612242263,-3734.311559,0.00037653,30]
[367004293,1750612242272,-169.06547063,0.00037685,2]
[367004295,1750612242281,-170.94,0.00037692,2]
[367004298,1750612242294,-455.61,0.00037692,2]
[367004299,1750612242303,-332.85,0.00037692,2]
[367004301,1750612242313,-1900.0,0.000377,13]
[367004304,1750612242323,-566.68270495,0.00037708,43]
[367004306,1750612242333,-169.06547063,0.00037729,2]
[367004308,1750612242343,-1966.97580723,0.00037745,2]
[367004310,1750612242353,-539.0873333,0.00037762,37]
[367004312,1750612242362,-169.06547063,0.00037773,2]
[367004314,1750612242371,-537.48,0.00037798,2]
[367004315,1750612242380,-300.0,0.000378,13]
[367004317,1750612242389,-2000.0,0.00037808,120]
[367004319,1750612242399,-2000.0,0.00037808,120]
[367004322,1750612242409,-2000.0,0.00037808,120]
[367004324,1750612242419,-2000.0,0.00037808,120]
[367004325,1750612242428,-2000.0,0.00037808,120]
[367004327,1750612242437,-2000.0,0.00037808,120]
[367004329,1750612242447,-2000.0,0.00037808,120]
[367004331,1750612242457,-2000.0,0.00037808,120]
[367004333,1750612242466,-2000.0,0.00037808,120]
[367004335,1750612242475,-2000.0,0.00037808,120]
[367004337,1750612242485,-2000.0,0.00037808,120]
[367004339,1750612242495,-2000.0,0.00037808,120]
[367004341,1750612242508,-2000.0,0.00037808,120]
[367004343,1750612242517,-2000.0,0.00037808,120]
[367004345,1750612242527,-2000.0,0.00037808,120]
[367004347,1750612242536,-2000.0,0.00037808,120]
[367004349,1750612242546,-2000.0,0.00037808,120]
[367004351,1750612242556,-2000.0,0.00037808,120]
[367004353,1750612242565,-2000.0,0.00037808,120]
[367004355,1750612242575,-2000.0,0.00037808,120]
[367004357,1750612242585,-2000.0,0.00037808,120]
[367004359,1750612242594,-2000.0,0.00037808,120]
[367004361,1750612242603,-2000.0,0.00037808,120]
[367004363,1750612242612,-2000.0,0.00037808,120]
[367004365,1750612242621,-729.0,0.00037808,120]
[367004367,1750612242631,-169.06547063,0.00037817,2]
[367004369,1750612242641,-150.0,0.00037834,2]
[367004371,1750612242651,-1966.97580723,0.00037854,2]
[367004373,1750612242660,-169.06547063,0.0003786,2]
[367004375,1750612242670,-500.0,0.00037863,30]
[367004376,1750612242679,-2165.0,0.00037899,20]
[367004378,1750612242690,-300.0,0.000379,13]
[367004380,1750612242700,-169.06547063,0.00037904,2]
[367004382,1750612242709,-169.06547063,0.00037948,2]
[367004384,1750612242719,-1966.97580723,0.00037964,2]
[367004386,1750612242729,-411.70403,0.0003797,2]
[367004389,1750612242739,-151.760227,0.0003799,7]
[367004391,1750612242749,-151.0,0.0003799,7]
[367004393,1750612242761,-233.248201,0.0003799,7]
[367004394,1750612242771,-233.248201,0.0003799,7]
[367004396,1750612242782,-169.06547063,0.00037992,2]
[367004399,1750612242793,-1000.0,0.00038,7]
[367004400,1750612242812,-169.06547063,0.00038036,2]
[367004402,1750612242822,-537.48,0.00038071,2]
[367004404,1750612242833,-1966.97580723,0.00038073,2]
[367004406,1750612242843,-169.06547063,0.0003808,2]
[367004409,1750612242853,-840.0,0.00038081,5]
[367004412,1750612242863,-900.0,0.00038081,60]
[367004415,1750612242872,-169.06547063,0.00038124,2]
[367004418,1750612242882,-500.0,0.00038137,30]
[367004420,1750612242892,-4973.78569926,0.00038156,10]
[367004422,1750612242901,-283.51767351,0.00038156,15]
[367004424,1750612242911,-336.51,0.00038164,120]
[367004426,1750612242921,-169.06547063,0.00038168,2]
[367004429,1750612242931,-411.70404,0.0003818,2]
[367004432,1750612242940,-1966.97580723,0.00038182,2]
[367004433,1750612242950,-539.0873333,0.0003821,38]
[367004435,1750612242960,-169.06547063,0.00038212,2]
[367004436,1750612242969,-283.48575407,0.00038238,2]
[367004437,1750612242979,-537.48,0.0003824,2]
[367004439,1750612242990,-537.48,0.0003824,2]
[367004440,1750612242999,-537.48,0.0003824,2]
[367004441,1750612243009,-203.0,0.00038244,7]
[367004443,1750612243019,-33009.3006759,0.00038246,3]
[367004444,1750612243028,-18657.04589442,0.0003825,28]
[367004445,1750612243153,-4155.94119927,0.0003825,28]
[367004449,1750612244275,-9995.9163,0.0003825,28]
[367005231,1750612362444,150.0,0.00021,2]
[367005232,1750612550141,150.0,0.00021,2]
[367005233,1750612647541,490.0,0.00025099,2]
[367005234,1750612719541,490.0,0.00025099,2]
[367005235,1750612723473,490.0,0.00025099,2]
[367005236,1750612741036,150.0,0.00021,2]
[367005238,1750612753883,152.44,0.00013699,2]
[367005239,1750612754107,152.44,0.00021918,2]
[367005243,1750612927379,150.0,0.00021,2]
[367005244,1750613108665,5885.26915922,0.0002,2]
[367005245,1750613108728,8910.73084078,0.0002,2]
[367005246,1750613110770,847.14093252,0.000154,2]
[367005247,1750613113664,275.88,0.00021,2]
[367005253,1750613171603,2466.2482267,0.000219,3]
[367005254,1750613171626,7734.72252427,0.000219,3]
[367005256,1750613222288,4765.27747573,0.00024,5]
[367005257,1750613222311,3503.02821632,0.00024,5]
[367005262,1750613226703,8996.97178368,0.000228,7]
[367005263,1750613226726,12500.0,0.000228,7]
[367005264,1750613226751,12500.0,0.000228,7]
[367005265,1750613226778,12500.0,0.000228,7]
[367005266,1750613226803,12420.79725885,0.000228,7]
[367005268,1750613234224,79.20274115,0.00015,2]
[367005269,1750613234245,6829.83565003,0.00015,2]
[367005270,1750613237861,1261.5337577,0.00015,2]
[367005275,1750613259641,963.52646596,0.00023,2]
[367005279,1750613318827,3445.10412631,0.00023,2]